bitfinex/quotes_SOLUSD_20250621
["timestamp","ask_amount","ask_price","bid_price","bid_amount"]
[1750532218698,23.92724852,137.74,137.68,7.74]
[1750532218899,0.73,137.77,137.71,31.18888529]
[1750532219206,24.65724852,137.75,137.71,31.18888529]
[1750532219986,24.65724852,137.75,137.7,31.18924976]
[1750532220167,0.73,137.74,137.7,31.18924976]
[1750532220365,24.65724852,137.73,137.69,7.26264052]
[1750532220560,0.73,137.72,137.69,7.26264052]
[1750532220881,26.73,137.65,137.61,7.26675078]
[1750532221079,49.92724852,137.67,137.63,23.92724852]
[1750532221404,49.92724852,137.67,137.61,25.43403513]
[1750532221705,26.0,137.67,137.61,25.43403513]
[1750532221876,26.0,137.72,137.66,23.92724852]
[1750532222092,148.73,137.77,137.71,23.92724852]
[1750532222390,172.65724852,137.77,137.73,23.92724852]
[1750532222574,0.73,137.76,137.73,23.92724852]
[1750532222774,24.65724852,137.76,137.66,24.81624886]
[1750532222966,25.15724852,137.76,137.72,23.92724852]
[1750532223161,23.92724852,137.73,137.67,25.42311324]
[1750532223907,23.92724852,137.73,137.68,23.92724852]
[1750532224090,24.65724852,137.73,137.67,7.26374664]
[1750532224295,23.92724852,137.73,137.68,23.92724852]
[1750532224504,0.73,137.71,137.67,31.19099516]
[1750532224679,0.73,137.71,137.68,23.92724852]
[1750532225001,23.92724852,137.72,137.69,7.26269155]
[1750532225572,33.98964445,137.75,137.69,7.26269155]
[1750532225807,0.73,137.72,137.69,7.26269155]
[1750532225983,0.73,137.75,137.7,23.92724852]
[1750532226170,26.0,137.74,137.67,25.42311324]
[1750532226569,26.0,137.74,137.71,23.92724852]
[1750532226901,171.92724852,137.77,137.73,7.26058229]
[1750532227069,50.65724852,137.76,137.73,7.26058229]
[1750532227876,0.73,137.73,137.65,9.282]
[1750532228192,23.92724852,137.69,137.65,33.20924852]
[1750532228396,0.73,137.73,137.68,23.92724852]
[1750532228695,0.73,137.73,137.69,23.92724852]
[1750532229101,0.73,137.73,137.69,31.18941643]
[1750532229407,0.73,137.73,137.66,18.16068574]
[1750532229408,26.73,137.74,137.66,7.26427429]
[1750532229617,23.92724852,137.73,137.68,23.92724852]
[1750532229765,26.0,137.74,137.7,23.92724852]
[1750532230169,148.0,137.75,137.71,23.92724852]
[1750532230404,148.0,137.75,137.66,25.42496003]
[1750532230405,0.73,137.77,137.73,23.92724852]
[1750532230610,26.73,137.77,137.74,23.92724852]
[1750532230783,23.92724852,137.79,137.74,23.92724852]
[1750532230981,0.73,137.79,137.75,23.92724852]
[1750532231190,0.73,137.79,137.76,23.92724852]
[1750532231508,26.0,137.77,137.75,23.92724852]
[1750532231709,26.0,137.77,137.76,23.92724852]
[1750532232081,26.0,137.77,137.73,25.41203803]
[1750532232282,26.0,137.77,137.75,23.92724852]
[1750532232481,0.73,137.79,137.75,23.92724852]
[1750532232701,172.65724852,137.82,137.77,23.92724852]
[1750532233094,26.0,137.81,137.78,7.25794745]
[1750532233398,172.65724852,137.82,137.78,31.18519597]
[1750532233719,148.0,137.82,137.78,7.25794745]
[1750532233900,148.0,137.82,137.78,31.18519597]
[1750532234077,174.0,137.82,137.78,31.18519597]
[1750532234280,148.0,137.82,137.78,31.18519597]
[1750532234791,0.71,137.8,137.76,23.92724852]
[1750532234991,23.92724852,137.77,137.73,7.26058229]
[1750532235177,23.92724852,137.76,137.73,7.26058229]
[1750532235379,24.63724852,137.77,137.73,7.26058229]
[1750532235597,23.92724852,137.77,137.73,31.18783081]
[1750532235899,26.0,137.79,137.73,31.18783081]
[1750532235900,50.63724852,137.79,137.75,23.92724852]
[1750532236218,24.63724852,137.76,137.73,7.26058229]
[1750532236510,26.0,137.78,137.73,7.26058229]
[1750532236511,49.92724852,137.78,137.73,49.33928655]
[1750532236706,49.92724852,137.78,137.74,23.92724852]
[1750532236907,26.0,137.78,137.74,23.92724852]
[1750532237081,49.92724852,137.78,137.75,7.25952813]
[1750532237592,50.63724852,137.78,137.75,7.25952813]
[1750532238394,23.92724852,137.76,137.73,7.26018886]
[1750532238573,26.0,137.77,137.73,31.18743738]
[1750532238779,31.23997181,137.8,137.76,23.92724852]
[1750532238987,29.87722033,137.81,137.76,23.92724852]
[1750532239173,29.87722033,137.81,137.77,7.25847426]
[1750532239496,23.92724852,137.8,137.77,7.25847426]
[1750532240018,148.71,137.82,137.78,23.92724852]
[1750532240019,148.0,137.82,137.78,23.92724852]
[1750532240312,26.0,137.83,137.79,23.92724852]
[1750532240502,49.92724852,137.83,137.79,31.84724852]
[1750532241195,49.92724852,137.83,137.8,7.25689404]
[1750532241516,26.0,137.83,137.8,7.25689404]
[1750532241926,5.26217748,137.85,137.81,23.92724852]
[1750532242087,5.26217748,137.84,137.81,23.92724852]
[1750532242288,24.63724852,137.86,137.81,23.92724852]
[1750532242517,5.26335033,137.85,137.81,23.92724852]
[1750532242717,24.63724852,137.86,137.8,25.39912916]
[1750532243012,5.26312664,137.85,137.81,23.92724852]
[1750532243209,24.63724852,137.86,137.82,31.18308947]
[1750532243412,26.0,137.87,137.83,23.92724852]
[1750532243902,23.92724852,137.88,137.83,23.92724852]
[1750532244102,23.92724852,137.88,137.79,32.13848081]
[1750532244103,23.92724852,137.85,137.79,32.13848081]
[1750532244281,24.63724852,137.83,137.8,7.25646625]
[1750532244897,0.71,137.83,137.8,7.25646625]
[1750532245809,23.92724852,137.84,137.8,7.25646625]
[1750532245983,23.92724852,137.84,137.8,25.39870137]
[1750532246182,23.92724852,137.84,137.8,49.32594989]
[1750532246407,5.25770662,137.84,137.8,49.32594989]
[1750532246705,23.92724852,137.84,137.8,49.32594989]
[1750532246916,23.92724852,137.84,137.8,25.39870137]
[1750532247086,26.71,137.85,137.8,49.32594989]
[1750532247286,29.1847941,137.84,137.8,49.32594989]
[1750532247481,23.92724852,137.84,137.8,49.32594989]
[1750532247708,24.63724852,137.81,137.79,15.17723219]
[1750532247889,23.92724852,137.8,137.79,15.17723219]
[1750532248516,23.92724852,137.8,137.79,7.92]
[1750532248698,24.63724852,137.8,137.74,31.18730369]
[1750532249008,24.63724852,137.8,137.75,42.07606884]
[1750532249213,23.92724852,137.79,137.75,42.07606884]
[1750532249398,23.92724852,137.79,137.75,49.33559697]
[1750532251190,23.92724852,137.8,137.76,23.92724852]
[1750532251390,23.92724852,137.8,137.77,25.40465993]
[1750532252330,26.0,137.82,137.77,25.40465993]
[1750532252537,23.92724852,137.8,137.77,25.40465993]
[1750532252824,26.0,137.82,137.74,25.41019311]
[1750532252825,0.71,137.77,137.74,25.41019311]
[1750532253134,23.92724852,137.76,137.74,25.41019311]
[1750532253429,24.63724852,137.77,137.74,25.41019311]
[1750532255229,26.0,137.82,137.74,7.26005517]
[1750532255230,23.92724852,137.76,137.74,7.26005517]
[1750532255454,23.92724852,137.75,137.73,15.18050037]
[1750532255652,23.92724852,137.76,137.73,33.33195611]
[1750532256452,23.92724852,137.74,137.73,7.92]
[1750532256611,24.63724852,137.74,137.73,7.92]
[1750532256805,42.10349185,137.74,137.73,7.92]
[1750532257135,42.10349185,137.74,137.65,7.26480203]
[1750532257136,0.71,137.73,137.65,7.26480203]
[1750532257342,15.39349185,137.69,137.65,7.26480203]
[1750532257644,0.71,137.77,137.68,15.39349185]
[1750532257854,0.71,137.77,137.65,25.42680711]
[1750532257855,15.39349185,137.76,137.72,15.39349185]
[1750532258009,0.71,137.81,137.74,15.39349185]
[1750532258206,15.39349185,137.79,137.75,15.39349185]
[1750532259047,15.39349185,137.79,137.76,7.25900116]
[1750532259607,26.5,137.8,137.76,25.40650406]
[1750532259823,26.5,137.8,137.76,7.25900116]
[1750532259824,15.39349185,137.79,137.76,7.25900116]
[1750532260752,41.39349185,137.8,137.76,40.79999591]
[1750532260949,15.39349185,137.81,137.76,40.79999591]
[1750532261314,15.39349185,137.82,137.78,15.39349185]
[1750532261536,15.39349185,137.82,137.77,15.39349185]
[1750532261740,15.39349185,137.82,137.78,15.39349185]
[1750532261948,15.39349185,137.83,137.79,15.39349185]
[1750532262136,15.39349185,137.83,137.78,23.31349185]
[1750532262538,15.39349185,137.83,137.79,15.39349185]
[1750532262744,15.39349185,137.83,137.78,23.31349185]
[1750532262921,15.39349185,137.83,137.79,25.40097249]
[1750532264358,16.09349185,137.82,137.79,7.25742071]
[1750532264737,15.39349185,137.8,137.79,7.25742071]
[1750532265441,15.39349185,137.8,137.78,15.17784497]
[1750532265959,15.39349185,137.79,137.78,15.17784497]
[1750532266254,0.5,137.81,137.78,15.17784497]
[1750532266435,15.89349185,137.81,137.78,15.17784497]
[1750532266622,15.39349185,137.79,137.78,7.92]
[1750532266827,15.39349185,137.79,137.74,7.26005517]
[1750532267029,15.39349185,137.76,137.74,7.26005517]
[1750532268451,15.39349185,137.77,137.74,25.41019311]
[1750532268961,15.39349185,137.78,137.74,40.80368496]
[1750532269337,15.39349185,137.75,137.74,7.26005517]
[1750532269546,15.39349185,137.75,137.73,7.68]
[1750532269547,15.39349185,137.75,137.69,7.26269155]
[1750532269756,26.0,137.77,137.69,7.26269155]
[1750532269757,15.39349185,137.7,137.69,7.26269155]
[1750532270153,16.09349185,137.7,137.68,7.68]
[1750532270352,15.39349185,137.69,137.68,14.94321905]
[1750532270856,15.39349185,137.69,137.68,7.68]
[1750532271054,0.7,137.68,137.64,1.6039]
[1750532271360,15.39349185,137.65,137.6,8.82940687]
[1750532271565,26.0,137.66,137.6,7.26700687]
[1750532271769,15.39349185,137.62,137.6,7.26700687]
[1750532271939,15.39349185,137.61,137.59,7.267792]
[1750532272649,0.7,137.65,137.59,25.43771713]
[1750532272855,15.39349185,137.64,137.61,7.26691374]
[1750532273058,15.39349185,137.63,137.61,7.26691374]
[1750532273241,15.39349185,137.62,137.61,7.26691374]
[1750532273764,15.39349185,137.63,137.61,7.26691374]
[1750532273965,26.7,137.69,137.61,40.82768994]
[1750532274146,26.7,137.69,137.61,25.43419809]
[1750532274343,15.39349185,137.66,137.61,25.43419809]
[1750532274538,15.39349185,137.64,137.61,25.43419809]
[1750532274740,26.7,137.67,137.61,25.43419809]
[1750532274939,26.7,137.67,137.61,49.47305463]
[1750532275152,0.7,137.76,137.62,40.0337]
[1750532275336,0.7,137.72,137.63,7.68]
[1750532275556,24.03885654,137.64,137.63,7.68]
[1750532275763,24.03885654,137.65,137.63,7.68]
[1750532276455,24.03885654,137.65,137.64,7.26532984]
[1750532276961,24.73885654,137.65,137.63,14.94583798]
[1750532277263,24.03885654,137.64,137.63,14.94583798]
[1750532277652,26.0,137.65,137.58,8.1816]
[1750532277871,26.0,137.65,137.55,7.2700836]
[1750532277872,0.7,137.63,137.55,7.2700836]
[1750532278041,24.03885654,137.58,137.55,7.2700836]
[1750532278239,0.7,137.61,137.55,7.2700836]
[1750532278469,0.7,137.61,137.55,49.48323661]
[1750532278675,24.03885654,137.58,137.55,25.44438007]
[1750532279174,0.7,137.61,137.55,25.44438007]
[1750532279350,26.0,137.62,137.57,24.03885654]
[1750532279659,50.03885654,137.62,137.58,31.71885654]
[1750532279860,50.03885654,137.62,137.58,7.68]
[1750532280069,24.03885654,137.61,137.58,7.68]
[1750532280244,24.73885654,137.6,137.58,7.68]
[1750532280481,24.73885654,137.6,137.58,14.94803542]
[1750532280650,24.73885654,137.59,137.58,7.68]
[1750532281050,50.73885654,137.59,137.53,7.27114084]
[1750532281253,26.0,137.56,137.5,4.25450678]
[1750532281570,26.0,137.55,137.5,4.25450678]
[1750532281750,0.7,137.54,137.5,11.52723203]
[1750532281948,24.73885654,137.52,137.5,11.52723203]
[1750532282167,0.7,137.52,137.5,11.52711722]
[1750532282375,0.7,137.57,137.5,35.56597376]
[1750532282548,0.5,137.58,137.55,24.03885654]
[1750532282870,0.5,137.58,137.54,18.64964886]
[1750532283044,24.73885654,137.61,137.54,18.64964886]
[1750532283045,24.03885654,137.61,137.56,24.03885654]
[1750532283249,24.03885654,137.62,137.58,24.03885654]
[1750532283583,24.73885654,137.65,137.58,7.68]
[1750532283780,26.7,137.65,137.58,31.71885654]
[1750532284067,24.03885654,137.62,137.58,31.71885654]
[1750532284269,0.7,137.65,137.58,7.68]
[1750532284476,24.03885654,137.64,137.61,7.26691374]
[1750532285148,24.03885654,137.65,137.61,7.26691374]
[1750532285474,24.03885654,137.65,137.61,31.30577028]
[1750532285670,24.03885654,137.66,137.62,24.03885654]
[1750532285882,26.0,137.67,137.62,24.03885654]
[1750532286044,24.03885654,137.66,137.62,24.03885654]
[1750532286369,24.03885654,137.65,137.61,51.01045463]
[1750532286675,24.03885654,137.66,137.61,51.01045463]
[1750532286878,24.03885654,137.66,137.61,26.97159809]
[1750532287044,24.03885654,137.66,137.61,51.01045463]
[1750532287552,24.03885654,137.65,137.61,51.01045463]
[1750532287861,24.03885654,137.66,137.61,26.97159809]
[1750532288070,148.7,137.7,137.62,24.03885654]
[1750532288572,24.03885654,137.67,137.63,18.16464433]
[1750532288741,24.03885654,137.68,137.63,18.16464433]
[1750532288945,24.03885654,137.69,137.63,18.16464433]
[1750532289241,24.03885654,137.69,137.64,24.03885654]
[1750532289443,24.03885654,137.69,137.65,7.68]
[1750532289646,0.7,137.74,137.67,24.03885654]
[1750532289850,0.7,137.74,137.65,7.68]
[1750532290048,0.7,137.74,137.69,24.03885654]
[1750532290267,24.03885654,137.74,137.7,24.03885654]
[1750532290448,24.03885654,137.75,137.71,24.03885654]
[1750532290651,24.03885654,137.76,137.73,7.26058229]
[1750532290859,24.03885654,137.75,137.73,7.26058229]
[1750532291250,0.7,137.76,137.73,7.26058229]
[1750532291251,24.73885654,137.76,137.73,7.26058229]
[1750532291571,24.03885654,137.75,137.73,7.26058229]
[1750532291869,0.7,137.76,137.73,7.26058229]
[1750532292062,24.03885654,137.75,137.73,7.26058229]
[1750532292666,0.7,137.8,137.73,7.26058229]
[1750532292866,24.03885654,137.76,137.73,7.26058229]
[1750532293246,24.03885654,137.75,137.73,7.26058229]
[1750532293852,0.7,137.78,137.73,7.26058229]
[1750532294076,24.73885654,137.78,137.74,24.03885654]
[1750532294266,24.03885654,137.79,137.74,24.03885654]
[1750532294467,24.77885654,137.79,137.74,24.03885654]
[1750532294777,24.03885654,137.78,137.74,24.03885654]
[1750532295184,24.03885654,137.78,137.73,49.45089457]
[1750532295782,24.03885654,137.77,137.73,49.45089457]
[1750532295953,24.77885654,137.76,137.73,7.26058229]
[1750532296786,24.03885654,137.77,137.73,31.29943883]
[1750532297386,24.03885654,137.77,137.73,7.26058229]
[1750532297584,24.77885654,137.77,137.73,7.26058229]
[1750532297877,0.74,137.73,137.69,1.6015]
[1750532298081,0.74,137.73,137.7,7.26164436]
[1750532298285,24.03885654,137.72,137.7,7.26164436]
[1750532298653,0.74,137.73,137.7,7.26164436]
[1750532298850,24.03885654,137.72,137.7,7.26164436]
[1750532300085,26.74,137.77,137.7,7.26164436]
[1750532300280,0.74,137.77,137.72,24.03885654]
[1750532300479,49.03885654,137.77,137.72,24.03885654]
[1750532300654,23.03885654,137.77,137.72,24.03885654]
[1750532300853,49.03885654,137.77,137.72,24.03885654]
[1750532301074,24.03885654,137.75,137.7,57.27591121]
[1750532301278,26.0,137.77,137.7,33.23705467]
[1750532301279,24.03885654,137.73,137.7,33.23705467]
[1750532301654,24.03885654,137.74,137.7,33.23705467]
[1750532301854,24.03885654,137.74,137.7,57.27591121]
[1750532302166,24.03885654,137.74,137.7,33.23705467]
[1750532302362,24.03885654,137.74,137.7,57.27591121]
[1750532302858,24.03885654,137.74,137.7,33.23705467]
[1750532303496,24.03885654,137.72,137.7,15.08164436]
[1750532304158,24.03885654,137.71,137.7,15.08216412]
[1750532304490,24.03885654,137.75,137.7,39.12102066]
[1750532304794,24.03885654,137.74,137.7,39.12102066]
[1750532305392,24.03885654,137.73,137.7,15.08216412]
[1750532305562,24.03885654,137.71,137.7,15.08216412]
[1750532305955,24.03885654,137.71,137.7,7.82]
[1750532306685,24.03885654,137.71,137.66,7.26421555]
[1750532306864,24.03885654,137.69,137.66,7.26421555]
[1750532307069,24.03885654,137.68,137.66,7.26421555]
[1750532307775,32.4973,137.74,137.66,25.42490129]
[1750532307975,24.03885654,137.71,137.66,25.42490129]
[1750532308154,24.03885654,137.7,137.66,49.46375783]
[1750532308352,24.03885654,137.68,137.66,25.42490129]
[1750532308587,26.0,137.73,137.66,7.26421555]
[1750532308791,24.03885654,137.68,137.66,7.26421555]
[1750532309283,24.03885654,137.69,137.66,7.26421555]
[1750532309661,26.0,137.73,137.67,24.03885654]
[1750532309873,24.03885654,137.73,137.69,24.03885654]
[1750532310191,24.03885654,137.73,137.68,25.70465654]
[1750532310891,15.39050443,137.73,137.69,7.26269155]
[1750532311076,15.39050443,137.73,137.69,25.41942043]
[1750532311259,6.4973,137.78,137.71,15.39050443]
[1750532311460,15.39050443,137.77,137.73,15.39050443]
[1750532311998,15.39050443,137.76,137.72,7.82]
[1750532312299,148.0,137.79,137.72,7.82]
[1750532312300,15.39050443,137.77,137.73,15.39050443]
[1750532312458,15.39050443,137.77,137.72,7.82]
[1750532312459,15.39050443,137.76,137.72,23.21050443]
[1750532312655,15.39050443,137.75,137.72,7.82]
[1750532312984,24.00409153,137.74,137.72,15.0810217]
[1750532313487,148.0,137.78,137.72,15.0810217]
[1750532313863,24.00409153,137.74,137.72,15.0810217]
[1750532315777,24.00409153,137.75,137.72,15.0810217]
[1750532315979,148.0,137.78,137.72,57.23788697]
[1750532316197,172.00409153,137.78,137.74,24.00409153]
[1750532316374,148.0,137.78,137.74,24.00409153]
[1750532316699,24.00409153,137.77,137.72,57.23788697]
[1750532316866,24.00409153,137.75,137.72,33.23379544]
[1750532317062,24.00409153,137.73,137.72,7.2610217]
[1750532317308,24.00409153,137.73,137.71,7.26147604]
[1750532318802,155.25853123,137.77,137.71,7.26147604]
[1750532318803,24.00409153,137.72,137.71,7.26147604]
[1750532318969,24.00409153,137.72,137.7,15.08212009]
[1750532319167,26.0,137.74,137.7,15.08212009]
[1750532319377,50.00409153,137.74,137.7,15.08212009]
[1750532319582,148.0,137.77,137.7,57.24162193]
[1750532319864,148.0,137.77,137.73,24.00409153]
[1750532320088,148.0,137.77,137.74,31.2641467]
[1750532320292,172.00409153,137.77,137.74,25.41019311]
[1750532321195,24.00409153,137.76,137.74,7.26005517]
[1750532321375,24.00409153,137.75,137.72,7.26110949]
[1750532321579,148.0,137.77,137.72,7.26110949]
[1750532321794,24.00409153,137.75,137.72,7.26110949]
[1750532322002,24.00409153,137.76,137.72,7.26110949]
[1750532322199,24.00409153,137.75,137.72,7.26110949]
[1750532322413,148.0,137.77,137.72,7.26110949]
[1750532322622,24.00409153,137.76,137.72,7.26110949]
[1750532323323,24.00409153,137.76,137.72,31.26520102]
[1750532324092,172.00409153,137.77,137.72,25.41388323]
[1750532324294,172.75409153,137.77,137.72,49.41797476]
[1750532325550,172.75409153,137.77,137.73,24.00409153]
[1750532325723,172.75409153,137.77,137.72,49.41797476]
[1750532326417,148.75,137.77,137.72,49.41797476]
[1750532326600,172.75409153,137.77,137.72,49.41797476]
[1750532327115,172.75409153,137.77,137.73,24.00409153]
[1750532327721,148.0,137.77,137.75,24.00409153]
[1750532327924,148.75,137.8,137.76,24.00409153]
[1750532328100,172.75409153,137.8,137.77,7.62]
[1750532328427,24.00409153,137.79,137.77,14.87825631]
[1750532328610,0.75,137.78,137.77,14.87825631]
[1750532329520,0.75,137.78,137.73,7.26058229]
[1750532329721,0.75,137.77,137.74,31.62409153]
[1750532330101,0.75,137.79,137.76,24.00409153]
[1750532330302,24.75409153,137.79,137.75,7.25952813]
[1750532330626,0.75,137.79,137.76,24.00409153]
[1750532331323,0.75,137.79,137.75,25.40834845]
[1750532331503,0.75,137.79,137.76,24.00409153]
[1750532332327,0.75,137.79,137.77,7.25847426]
[1750532332503,148.0,137.8,137.77,31.26256579]
[1750532333051,26.0,137.82,137.78,15.37335166]
[1750532333329,0.75,137.81,137.77,40.77801159]
[1750532333536,0.75,137.81,137.78,15.37335166]
[1750532333704,0.75,137.81,137.79,15.37335166]
[1750532334026,0.75,137.81,137.78,15.37335166]
[1750532334241,0.75,137.81,137.77,25.40465993]
[1750532334530,0.75,137.81,137.78,15.37335166]
[1750532335321,5.29982164,137.83,137.8,15.37335166]
[1750532335521,16.12335166,137.82,137.78,15.37335166]
[1750532335730,0.75,137.81,137.78,15.37335166]
[1750532336304,16.12335166,137.81,137.75,25.40834845]
[1750532336634,0.75,137.79,137.76,15.37335166]
[1750532336805,0.75,137.77,137.75,14.87952813]
[1750532338317,15.37335166,137.78,137.75,14.87952813]
[1750532338510,16.12335166,137.76,137.75,7.62]
[1750532339331,148.0,137.77,137.75,30.25274949]
[1750532339634,148.0,137.77,137.75,14.87939783]
[1750532339932,148.0,137.77,137.76,15.37335166]
[1750532340349,148.0,137.77,137.75,30.25274949]
[1750532340509,148.0,137.77,137.75,14.87939783]
[1750532340711,148.0,137.77,137.75,30.25274949]
[1750532341041,148.0,137.77,137.76,15.37335166]
[1750532341643,26.0,137.8,137.75,33.02821815]
[1750532341644,42.12335166,137.8,137.75,33.02821815]
[1750532341814,16.12335166,137.78,137.75,14.87939783]
[1750532342711,0.75,137.78,137.75,14.87939783]
[1750532343033,164.12335166,137.79,137.75,33.02821815]
[1750532343235,148.75,137.79,137.75,48.40156981]
[1750532343537,148.0,137.79,137.76,15.37335166]
[1750532343840,148.0,137.79,137.77,7.25847426]
[1750532344835,148.0,137.79,137.76,15.37335166]
[1750532344836,0.75,137.77,137.76,7.25880222]
[1750532345336,148.0,137.79,137.76,7.25880222]
[1750532345845,148.0,137.79,137.76,40.77965678]
[1750532347730,0.75,137.78,137.76,25.40630512]
[1750532348035,0.75,137.78,137.76,7.25880222]
[1750532348418,148.0,137.79,137.76,7.25880222]
[1750532348624,0.75,137.78,137.76,7.25880222]
[1750532349134,148.0,137.79,137.76,7.25880222]
[1750532349340,148.75,137.79,137.76,7.25880222]
[1750532349515,7.25532456,137.83,137.78,15.37335166]
[1750532349516,148.0,137.83,137.78,15.37335166]
[1750532349721,148.0,137.83,137.81,15.37335166]
[1750532350042,0.75,137.85,137.83,7.25531451]
[1750532350231,0.75,137.87,137.84,15.37335166]
[1750532350433,0.75,137.87,137.85,15.37335166]
[1750532350835,148.75,137.88,137.85,15.37335166]
[1750532351437,0.75,137.9,137.87,15.37335166]
[1750532351753,148.0,137.93,137.88,15.37335166]
[1750532351754,15.37335166,137.92,137.88,15.37335166]
[1750532351962,0.75,137.91,137.88,15.37335166]
[1750532352127,0.75,137.91,137.89,7.25215751]
[1750532352952,174.0,137.93,137.89,30.24550917]
[1750532352953,0.75,137.93,137.89,30.24550917]
[1750532353141,0.75,137.93,137.89,48.37590296]
[1750532353448,0.75,137.93,137.9,15.37335166]
[1750532353662,41.37335166,137.96,137.91,15.37335166]
[1750532353829,16.12335166,137.96,137.92,15.37335166]
[1750532354025,0.75,137.96,137.93,15.37335166]
[1750532354340,16.11335166,137.97,137.94,7.24952878]
[1750532354648,0.74,137.95,137.94,7.24952878]
[1750532354862,15.37335166,137.97,137.94,7.24952878]
[1750532355059,0.74,138.01,137.94,7.24952878]
[1750532355227,0.74,137.98,137.94,22.62288044]
[1750532355583,0.74,137.98,137.95,15.37335166]
[1750532355757,15.37335166,138.0,137.96,15.37335166]
[1750532355922,0.74,138.01,137.97,15.37335166]
[1750532356132,16.11335166,138.01,137.98,7.24742716]
[1750532356850,0.74,138.01,137.98,7.24742716]
[1750532357048,16.11335166,138.01,137.98,7.24742716]
[1750532357250,0.74,138.01,137.98,7.24742716]
[1750532357468,0.74,138.01,137.98,22.62077882]
[1750532357629,15.37335166,138.0,137.96,7.46]
[1750532357829,16.11335166,137.99,137.96,7.46]
[1750532358251,0.74,137.99,137.96,30.08175942]
[1750532358454,174.0,138.02,137.97,15.37335166]
[1750532358675,15.37335166,138.0,137.96,30.08175942]
[1750532359255,16.11335166,137.99,137.96,14.70840776]
[1750532359460,0.74,137.99,137.96,14.70840776]
[1750532359663,16.11335166,137.99,137.96,14.70840776]
[1750532360460,0.74,137.99,137.96,14.70840776]
[1750532360787,16.11335166,137.98,137.96,14.70840776]
[1750532360984,16.11335166,137.97,137.96,7.46]
[1750532361662,0.74,137.97,137.96,7.46]
[1750532362245,16.11335166,137.97,137.96,7.46]
[1750532363684,15.37335166,137.97,137.96,7.46]
[1750532364188,148.0,137.98,137.96,14.70847781]
[1750532364554,163.37335166,137.98,137.96,14.70847781]
[1750532364763,163.37335166,137.98,137.96,14.70846826]
[1750532364967,148.0,137.98,137.96,14.70846826]
[1750532365165,163.37335166,137.98,137.96,7.46]
[1750532365548,15.37335166,137.97,137.96,7.46]
[1750532366245,163.37335166,137.98,137.96,14.70847781]
[1750532367761,15.37335166,137.97,137.96,14.70847781]
[1750532369963,148.0,137.98,137.96,14.70847781]
[1750532370162,16.11335166,137.97,137.96,7.46]
[1750532370485,16.11335166,137.97,137.96,14.70847781]
[1750532370856,148.0,137.98,137.96,14.70847781]
[1750532371057,163.37335166,137.98,137.96,14.70847781]
[1750532371359,148.0,137.98,137.96,14.70847781]
[1750532372458,15.37335166,138.01,137.97,15.37335166]
[1750532372677,15.37335166,138.01,137.96,39.20317235]
[1750532372678,163.37335166,138.02,137.98,15.37335166]
[1750532372863,163.37335166,138.02,137.97,15.37335166]
[1750532373491,15.37335166,138.02,137.98,15.37335166]
[1750532373695,192.89115933,138.08,137.99,15.37335166]
[1750532373696,148.0,138.05,137.99,15.37335166]
[1750532373866,15.37335166,138.03,137.99,1.6155]
[1750532374206,15.37335166,138.02,137.99,1.6155]
[1750532374504,15.37335166,138.0,137.96,1.6155]
[1750532374709,15.37335166,138.0,137.96,7.46]
[1750532374710,15.37335166,137.98,137.96,7.46]
[1750532375012,15.37335166,137.99,137.96,7.46]
[1750532375165,0.74,138.03,137.98,15.37335166]
[1750532375362,15.37335166,138.02,137.96,7.46]
[1750532375579,15.37335166,138.01,137.96,7.46]
[1750532375892,15.37335166,138.01,137.96,22.83335166]
[1750532376192,0.74,138.0,137.96,22.83335166]
[1750532376401,16.11335166,138.0,137.96,7.46]
[1750532376591,16.11335166,138.0,137.97,7.24795245]
[1750532377086,15.37335166,138.01,137.97,25.36783358]
[1750532377268,15.37335166,137.99,137.97,7.24795245]
[1750532377477,15.37335166,138.01,137.97,7.24795245]
[1750532377660,15.37335166,137.98,137.97,7.24795245]
[1750532377872,16.11335166,137.99,137.97,7.24795245]
[1750532379398,16.11335166,138.0,137.97,25.36783358]
[1750532379995,15.37335166,138.01,137.97,25.36783358]
[1750532380288,15.37335166,138.0,137.97,25.36783358]
[1750532380676,0.74,138.01,137.97,25.36783358]
[1750532381393,15.37335166,138.0,137.97,25.36783358]
[1750532381575,16.11335166,138.0,137.97,25.36783358]
[1750532381769,16.11335166,137.98,137.96,7.46]
[1750532381999,16.11335166,137.97,137.96,7.46]
[1750532382675,15.37335166,137.98,137.96,14.70847781]